Cogmind - Beta 14 *** ADVENTURER MODE // 2025.01.02 @ 19:21:27 Player: Starry Result: Destroyed by G-34 Mercenary with Small Laser Performance ------------- Evolutions (1) 500 Regions Visited (3) 600 Robots Destroyed (100) 500 Value Destroyed (2018) 2018 Prototype IDs (4) 80 Alien Tech Used (0) 0 Bonus (0) 0 TOTAL SCORE: 3698 Bonus ------- None Cogmind --------- Core Integrity 0/400 Matter 258/300 Energy 249/265 System Corruption 4% Temperature Warm (196) Movement Rolling (115) Ox1 Location -9/Storage Parts ------- > --- POWER (1) -------- Improved Ion Engine > --- PROPULSION (2) --- Compact Wheel Compact Wheel > --- UTILITY (3) ------ Large Storage Unit Signal Interpreter Medium Armor Plating > --- WEAPON (3) ------- Advanced Beam Cannon Improved Assault Rifle Improved Light Cannon > --- INVENTORY (15) --- Improved Ion Engine Improved Ion Engine Large Battery (200) Medium Matter Pod (100) Targeting Computer Targeting Computer Power Shielding Light Armor Plating Heavy Assault Rifle Improved Assault Rifle Improved Assault Rifle Improved Assault Rifle Improved Light Cannon Improved Light Cannon Peak State ------------ > --- POWER ------------ Improved Ion Engine > --- PROPULSION ------- Light Treads Improved Treads > --- UTILITY ---------- Large Storage Unit Signal Interpreter Medium Armor Plating > --- WEAPON ----------- Advanced Beam Cannon Advanced Beam Cannon Advanced Beam Cannon > --- INVENTORY -------- Improved Ion Engine Large Battery Medium Matter Pod Advanced Beam Cannon Advanced Beam Cannon [Rating: 19] Favorites ----------- Power Improved Ion Engine Engine Improved Ion Engine Propulsion Compact Wheel Treads Improved Treads Leg Aluminum Leg Wheel Compact Wheel Hover Unit Hover Unit Flight Unit Improved Flight Unit Utility Signal Interpreter Device Seismic Detector Storage Large Storage Unit Processor Signal Interpreter Protection Medium Armor Plating Weapon Advanced Beam Cannon Energy Gun Medium Laser Energy Cannon Advanced Beam Cannon Ballistic Gun Improved Assault Rifle Ballistic Cannon Light Cannon Special Weapon Mining Laser Build | -11 -10 -9 -9 ------- Run | Yrd Mat Mat Sto Slots Evolved 2 | . . 2 . Power . | . . . . Propulsion . | . . . . Utility 1 | . . 1 . Weapon 1 | . . 1 . Parts Attached 71 | 20 21 17 13 Power 9 | 2 3 3 1 Engine 9 | 2 3 3 1 Core . | . . . . Reactor . | . . . . Propulsion 21 | 9 7 3 2 Treads 2 | . . 2 . Leg 5 | 2 3 . . Wheel 11 | 7 2 . 2 Hover 2 | . 2 . . Flight 1 | . . 1 . Utility 17 | 2 8 4 3 Device 6 | 2 3 1 . Storage 1 | . . . 1 Processor 4 | . 2 1 1 Hackware . | . . . . Protection 6 | . 3 2 1 Artifact . | . . . . Weapon 24 | 7 3 7 7 Energy Gun 7 | 4 3 . . Energy Cannon 5 | . . 3 2 Ballistic Gun 4 | 1 . . 3 Ballistic Cannon 6 | . . 4 2 Launcher . | . . . . Special Weapon 2 | 2 . . . Impact Weapon . | . . . . Slashing Weapon . | . . . . Piercing Weapon . | . . . . Special Melee Weapon . | . . . . Unidentified Prototypes 4 | . . 3 1 Corrupted Parts 1 | 1 . . . System Corruption 5 | 5 . . . Parts Lost 8 | . 3 3 2 Power 3 | . 2 1 . Propulsion 4 | . 1 1 2 Utility 1 | . . 1 . Weapon . | . . . . Highest Loss Streak 2 | . 2 2 2 To Critical Strikes . | . . . . Average Slot Usage (%) 91 | . 90 89 93 Engine 10 | . 10 10 11 Treads 7 | . . 17 4 Leg 3 | . 10 2 . Wheel 6 | . 3 . 11 Hover 2 | . 8 . . Device 4 | . 9 8 . Storage 4 | . . . 10 Processor 8 | . 5 7 11 Protection 11 | . 12 11 11 Energy Gun 7 | . 28 2 . Energy Cannon 12 | . . 3 24 Ballistic Gun 1 | . . . 4 Ballistic Cannon 8 | . . 24 4 Peak Build Rating 19 | 6 10 18 19 Average Rating 11 | 5 7 11 17 On Entrance 8 | . 6 9 18 Naked Turns . | . . . . Heaviest Build 46 | 11 11 29 46 Greatest Support 49 | 20 20 49 43 Greatest Overweight (x) 15 | 1 1 1 15 Average Overweight (x) . | . . . 2 Largest Inventory Capacity 15 | 5 5 5 15 Average Capacity 8 | 5 5 5 14 Most Carried 15 | 5 5 5 15 Average Carried 6 | 3 4 4 9 Final Capacity 15 | 5 5 5 15 Final Carried 14 | 4 5 5 14 Class Distribution -------------------- 39% | Mutant 32% | Scavenger-Tank 21% | Tank 5% | Scavenger-Mutant Dominant Class ---------------- Mutant | -10/Materials Scavenger-Tank | -9/Materials Scavenger-Tank | -9/Storage Resources | -11 -10 -9 -9 ----------- Run | Yrd Mat Mat Sto Matter Collected 2126 | 519 346 710 551 Remotely . | . . . . Salvage Created 3329 | 133 980 952 1264 Parts 192 | 11 48 65 68 Haulers Intercepted 4 | . . 3 1 Recyclers Shooed 12 | . 9 1 2 Parts Field Recycled . | . . . . Retrieved Matter . | . . . . Parts Self-Destructed . | . . . . Prevented . | . . . . Kills | -11 -10 -9 -9 ------- Run | Yrd Mat Mat Sto Combat Hostiles Destroyed 51 | 1 10 19 21 Guns 15 | 1 9 5 . Cannons 35 | . . 14 21 Classes Destroyed 10 | 3 4 2 1 Worker 14 | 1 9 2 2 Builder 5 | . 3 2 . Tunneler 6 | 3 2 . 1 Hauler 4 | . . 3 1 Recycler 11 | . 5 2 4 Watcher 9 | . 3 4 2 Swarmer 12 | . 3 5 4 Grunt 29 | 1 7 12 9 Brawler 1 | . . . 1 Sentry 9 | . . 2 7 Best Kill Streak 9 | 4 6 9 3 Combat Bots Only 5 | 1 3 5 3 Max Kills in Single Turn 2 | 1 2 2 2 Gunslinging 1 | . 1 . . Exploded . | . . . . Melee . | . . . . Uniques/NPCs Destroyed . | . . . . Combat | -11 -10 -9 -9 -------- Run | Yrd Mat Mat Sto Hostile Shots Fired 251 | 8 61 82 100 Missed 70 | 4 17 27 22 Damage Taken 1891 | 34 473 420 964 Core 558 | . 155 73 330 Absorbed by Shields . | . . . . Redirected to Shielding 35 | . 25 10 . Ignored by Resistances 518 | 11 150 137 220 Regen/Repaired (Parts) 201 | . . . 201 Core Remaining (%) 69 | 100 38 . . Volleys Fired 304 | 78 95 66 65 Largest 3 | 2 2 3 3 Hottest 204 | 200 100 204 204 Shots Fired 694 | 147 190 178 179 Gun 300 | 39 190 42 29 Cannon 286 | . . 136 150 Launcher . | . . . . Special 108 | 108 . . . Kinetic 184 | . . 127 57 Thermal 482 | 119 190 51 122 Explosive . | . . . . Electromagnetic 28 | 28 . . . Robot Hit Streak 27 | 16 18 13 27 Robot Miss Streak 5 | 1 3 3 5 Penetration Max . | . . . . Secondary Targets 2 | . 1 1 . Max Gunslinging Chain 1 | . 1 1 . Shots Hit Robots 293 | 20 113 81 79 Core Hits 124 | 6 46 37 35 Critical Kills 1 | . . . 1 Critical Parts Destroyed . | . . . . Critical Strikes 14 | 1 8 4 1 Burn 9 | 1 8 . . Meltdown 1 | . . . 1 Blast 4 | . . 4 . Melee Attacks . | . . . . Impact . | . . . . Slashing . | . . . . Piercing . | . . . . Sneak Attacks . | . . . . Combat Hostiles . | . . . . Follow-up Attacks . | . . . . Damage Inflicted 4552 | 263 1345 1257 1687 Guns 2145 | 263 1345 326 211 Cannons 2407 | . . 931 1476 Explosions . | . . . . Melee . | . . . . Ramming . | . . . . Kinetic 1368 | . . 850 518 Thermal 3045 | 124 1345 407 1169 Explosive . | . . . . Electromagnetic 139 | 139 . . . Impact . | . . . . Slashing . | . . . . Piercing . | . . . . Highest Corruption 7 | 5 7 4 4 Average Corruption 4 | 5 6 4 4 Corruption Purged . | . . . . Corruption Blocked . | . . . . Effects 110 | 20 29 17 44 Message Errors 18 | 3 2 3 10 Matter Fused 25 | 6 8 5 6 Heat Flow Errors 12 | 3 2 . 7 Energy Discharges 15 | 1 6 3 5 Parts Fused 4 | 1 1 1 1 Data Loss (minor) 20 | 5 3 4 8 Data Loss (major) 2 | . 2 . . Misfires 4 | . 2 1 1 Alerts 8 | 1 2 . 5 Weapon Failures 2 | . 1 . 1 Overload Shots . | . . . . Overflow Damage 16 | . . 9 7 Projectiles 16 | . . 9 7 Explosions . | . . . . Melee . | . . . . Knockbacks 6 | . . 5 1 Impact . | . . . . Kinetic 6 | . . 5 1 Secondary . | . . . . Self-Inflicted Damage 123 | . 76 . 47 Shots 4 | . 3 . 1 Rammed . | . . . . Targets Rammed . | . . . . Kicked . | . . . . Crushed . | . . . . Highest Temperature 722 | 455 416 281 722 Average Temperature 143 | 134 127 89 192 Received Heat Transfer 792 | 24 198 264 306 Effects 56 | 8 8 . 40 Shutdowns 10 | 2 1 . 7 Energy Bleed 6 | 2 . . 4 Interference 18 | 3 6 . 9 Matter Decay 6 | 1 . . 5 Short Circuit 2 | . . . 2 Damage (minor) 4 | . . . 4 Damage (major) 6 | . 1 . 5 Damage (core) 4 | . . . 4 Siege Activations . | . . . . Robots Corrupted . | . . . . Combat Hostiles . | . . . . Parts Fried 1 | 1 . . . Impact Corruptions . | . . . . Robots Melted 2 | . 1 . 1 Combat Hostiles 1 | . 1 . . Parts Melted 11 | . 6 1 4 Heat Transferred 7673 | 444 4222 898 2109 Parts Sabotaged . | . . . . Parts Stolen . | . . . . Parts Stripped . | . . . . Power Chain Reactions 1 | . 1 . . Alert | -11 -10 -9 -9 ------- Run | Yrd Mat Mat Sto Peak Influence 385 | 40 328 385 267 Initial 91 | . . 58 91 Average 99 | 12 103 210 81 Maximum Alert Level 1 | . 1 1 1 Low Security (%) 86 | 100 83 59 95 Level 1 13 | . 16 40 4 Level 2 . | . . . . Level 3 . | . . . . Level 4 . | . . . . Level 5 . | . . . . High Security . | . . . . Max Security . | . . . . Squads Dispatched 6 | . 2 2 2 Investigation 3 | . 2 . 1 Extermination . | . . . . Reinforcement 3 | . . 2 1 Assault . | . . . . Garrison . | . . . . Intercept . | . . . . Searches Triggered . | . . . . Construction Impeded 1 | . . . 1 Haulers Reinforced . | . . . . Active Scanning Responses . | . . . . Cargo Convoy Interrupts . | . . . . Stealth | -11 -10 -9 -9 --------- Run | Yrd Mat Mat Sto Distress Signals 6 | . 2 1 3 Communications Jammed . | . . . . Distress Signals . | . . . . Times Spotted 64 | 1 14 24 25 Peak Tracking Total 6 | 1 4 6 4 Tactical Retreats 3 | . 1 . 2 Traps | -11 -10 -9 -9 ------- Run | Yrd Mat Mat Sto Traps Triggered 5 | . 3 . 2 Indirectly . | . . . . Trap Hack Attempts . | . . . . Triggered . | . . . . Disarmed 1 | . 1 . . Reprogrammed . | . . . . Reused . | . . . . Traps Extracted . | . . . . Installed . | . . . . Triggered . | . . . . Machines | -11 -10 -9 -9 ---------- Run | Yrd Mat Mat Sto Machines Disabled 12 | . 3 5 4 Max in Single Turn 2 | . 2 1 1 Machines Repaired . | . . . . Machines Dismantled . | . . . . Machines Sabotaged . | . . . . Overloaded Fab Kills . | . . . . Hacking | -11 -10 -9 -9 --------- Run | Yrd Mat Mat Sto Machines Accessed 12 | . 6 1 5 Terminals 10 | . 5 1 4 Fabricators . | . . . . Repair Stations 1 | . . . 1 Recycling Units 1 | . 1 . . Scanalyzers . | . . . . Garrison Access . | . . . . Total Hacks 40 | . 21 3 16 Successful 28 | . 16 1 11 Failed 11 | . 5 2 4 Catastrophic 1 | . . . 1 Database Lockouts 1 | . . . 1 Manual 1 | . . . 1 Terminals 33 | . 18 3 12 Fabricators . | . . . . Repair Stations 4 | . . . 4 Recycling Units 3 | . 3 . . Scanalyzers . | . . . . Garrison Access . | . . . . Terminal Hacks 22 | . 14 1 7 Record 12 | . 9 . 3 Open Door 1 | . . . 1 Alert Level 2 | . 2 . . Unreport Threat 1 | . . . 1 Disarm Traps 2 | . 2 . . Dispatch Records 1 | . . . 1 Transport Status 1 | . 1 . . Recall Investigation 1 | . . . 1 Recall Reinforcements 1 | . . 1 . Fabricator Hacks . | . . . . Repair Station Hacks 4 | . . . 4 Scan Component 2 | . . . 2 Repair 2 | . . . 2 Recycling Unit Hacks 2 | . 2 . . Recycle Component 1 | . 1 . . Process 1 | . 1 . . Scanalyzer . | . . . . Garrison Access Hacks . | . . . . Unauthorized Hacks . | . . . . Terminals . | . . . . Fabricators . | . . . . Repair Stations . | . . . . Recycling Units . | . . . . Scanalyzers . | . . . . Garrison Access . | . . . . Data Cores Recovered . | . . . . Used . | . . . . Hacking Detections 9 | . 3 1 5 Full Trace Events 7 | . 3 1 3 Feedback Events 1 | . 1 . . Corruption 1 | . 1 . . Feedback Blocked . | . . . . Robot Schematics Acquired . | . . . . Robots Built . | . . . . Authchips . | . . . . Time . | . . . . Total Robot Build Rating . | . . . . Part Schematics Acquired . | . . . . Parts Built . | . . . . Authchips . | . . . . Time . | . . . . Total Part Build Rating . | . . . . Parts Repaired 2 | . . . 2 Time 83 | . . . 83 Parts Recycled 1 | . 1 . . Recycled Matter 132 | . 132 . . Retrieved Matter . | . . . . Retrieved Components . | . . . . Parts Scanalyzed . | . . . . Part Schematics Acquired . | . . . . Parts Damaged . | . . . . Bothacking | -11 -10 -9 -9 ------------ Run | Yrd Mat Mat Sto Used RIF Installer . | . . . . Robots Hacked . | . . . . Non-combat . | . . . . Combat . | . . . . Robot Hacks Applied . | . . . . Relay Couplers Released . | . . . . Fabnet Peak Effective % . | . . . . Robots Rewired . | . . . . Allies Hacked . | . . . . Hacks Repelled . | . . . . Allies | -11 -10 -9 -9 -------- Run | Yrd Mat Mat Sto Total Allies . | . . . . Largest Group . | . . . . Highest-Rated Group . | . . . . Highest-Rated Ally . | . . . . Total Orders . | . . . . Ally Attacks . | . . . . Total Damage . | . . . . Kills . | . . . . Allies Corrupted . | . . . . Allies Melted . | . . . . Intel | -11 -10 -9 -9 ------- Run | Yrd Mat Mat Sto Robot Analysis Total . | . . . . Derelict Logs Recovered . | . . . . Drone Launches . | . . . . Drone Recoveries . | . . . . Exploration | -11 -10 -9 -9 ------------- Run | Yrd Mat Mat Sto Turns Passed 4787 | 971 956 1034 1826 Spaces Moved 2021 | 355 589 424 653 Core 116 | 58 1 . 57 Treads 476 | . . 359 117 Legs 275 | . 210 65 . Wheels 931 | 297 155 . 479 Hover 223 | . 223 . . Flight . | . . . . Fastest Speed 50 | 50 56 120 115 Average Speed 134 | 77 88 155 192 Slowest Speed 800 | 95 120 190 800 Overloaded Moves . | . . . . Propulsion Burnouts . | . . . . Robots Hopped . | . . . . Cave-ins Triggered . | . . . . Exploration Rate (%) 40 | 9 73 27 54 Regions Visited 3 Branch Regions 1 Pre-discovered Areas . | . . . . Known Exits Taken 1 | . . 1 . Unknown Exits Taken 2 | 1 1 . . Scrap Searched . | . . . . Spaces Dug 23 | 23 . . . Terrain Destroyed 90 | 37 32 . 21 Melee . | . . . . Projectile 37 | 37 . . . AOE 53 | . 32 . 21 Terrain Rammed . | . . . . Walls Destroyed . | . . . . Machines Disabled . | . . . . Actions | -11 -10 -9 -9 --------- Run | Yrd Mat Mat Sto Total 3281 | 697 840 655 1089 Wait 770 | 216 96 133 325 Move 2018 | 354 588 423 653 Hop . | . . . . Pick Up 60 | 14 21 2 23 Fast Attach 23 | 1 5 17 . Attach 38 | 17 10 . 11 Detach 10 | 10 . . . Swap 10 | 2 6 . 2 Drop 48 | 5 19 14 10 Fire 304 | 78 95 66 65 Melee . | . . . . Ram . | . . . . Kick . | . . . . Crush . | . . . . Escape Stasis . | . . . . Rewire . | . . . . Trap . | . . . . Miscellaneous . | . . . . Route ------- -11/Scrapyard -10/Materials (discovered 3 exits: *Mat x2 / [*Min]) -9/Materials -9/Storage History --------- Turn | Location | Event 2 | -11/Scrapyard | Met Revision 17 89 | -11/Scrapyard | Discovered new exit (range 8) 972 | -11/Scrapyard | Entered Materials 973 | -10/Materials | Build established: Mutant 1384 | -10/Materials | Discovered new exit (range 18) 1594 | -10/Materials | Core integrity fell below 50% 1654 | -10/Materials | Discovered new exit (range 12) 1847 | -10/Materials | Discovered new exit (range 16) 1928 | -10/Materials | Entered another Materials area 1928 | -9/Materials | Evolved 2 slots: Utility x1, Weapon x1 2653 | -9/Materials | Build established: Scavenger-Tank 2953 | -9/Materials | Discovered new exit (range 3) 2956 | -9/Materials | Identified exit to Storage 2962 | -9/Materials | Entered Storage 3287 | -9/Storage | Core integrity fell below 50% 3338 | -9/Storage | Build established: Tank 4049 | -9/Storage | Core integrity fell below 20% 4157 | -9/Storage | Build established: Scavenger-Tank 4354 | -9/Storage | Central database locked down 4603 | -9/Storage | Repaired Med. Armor Plating 4658 | -9/Storage | Repaired Imp. Assault Rifle 4788 | -9/Storage | Destroyed by G-34 Mercenary with Small Laser Last Messages --------------- G-34 Mercenary destroyed. Z2U>ISKORCN,F